bitfinex/quotes_ETHUSD_20251124
["timestamp","ask_amount","ask_price","bid_price","bid_amount"]
[1763953624174,0.90699264,2845.5,2844.1,0.3666]
[1763953624340,1.01217017,2845.4,2844.1,0.3666]
[1763953624536,0.32478871,2845.3,2844.1,0.3666]
[1763953624737,0.225,2845.2,2844.1,0.3666]
[1763953624971,0.54978871,2845.2,2844.0,0.1419]
[1763953625140,0.95318146,2845.1,2844.0,0.1419]
[1763953625341,0.90699264,2844.9,2844.0,0.1419]
[1763953625573,0.225,2844.8,2844.0,0.1419]
[1763953625770,0.90699264,2844.6,2844.0,0.1419]
[1763953625976,0.90699264,2844.6,2843.8,0.001]
[1763953626138,1.39779264,2844.6,2843.8,0.001]
[1763953626347,0.63321018,2844.5,2843.8,0.001]
[1763953626563,0.225,2844.4,2843.8,0.3676]
[1763953626768,0.225,2844.4,2843.8,0.4676]
[1763953627091,0.225,2844.4,2843.8,0.001]
[1763953627802,0.4718,2844.3,2843.8,0.001]
[1763953628003,0.4697,2843.9,2843.8,0.001]
[1763953628160,0.90699264,2844.2,2843.8,0.001]
[1763953628470,0.225,2844.1,2843.8,0.001]
[1763953628657,0.6968,2844.1,2843.8,0.001]
[1763953628863,0.225,2844.1,2843.8,0.001]
[1763953629063,0.4697,2843.9,2843.8,0.001]
[1763953629508,0.9415,2843.9,2843.8,0.001]
[1763953629798,1.8405024,2843.9,2843.8,0.001]
[1763953630168,2.74749504,2843.9,2843.8,0.001]
[1763953630362,2.50069504,2843.9,2843.8,0.001]
[1763953630559,1.60169264,2843.9,2843.8,0.001]
[1763953631093,2.07349264,2843.9,2843.8,0.001]
[1763953631463,0.90699264,2843.9,2843.8,0.001]
[1763953631793,1.13199264,2843.9,2843.8,0.001]
[1763953632173,1.60169264,2843.9,2843.8,0.001]
[1763953632369,0.90699264,2843.9,2843.8,0.001]
[1763953632570,1.13199264,2843.9,2843.8,0.001]
[1763953633097,2.07349264,2843.9,2843.8,0.001]
[1763953633397,5.79713994,2843.9,2843.8,0.001]
[1763953633797,2.4218615,2843.9,2843.8,0.001]
[1763953634500,1.2553615,2843.9,2843.8,0.001]
[1763953634674,1.3393419,2843.9,2843.8,0.001]
[1763953635002,0.20734926,2843.9,2843.8,0.001]
[1763953635199,0.26895372,2843.9,2843.8,0.001]
[1763953635372,0.225,2843.9,2843.8,0.001]
[1763953635767,0.90699264,2844.2,2843.8,0.001]
[1763953636067,0.4697,2843.9,2843.8,0.001]
[1763953636272,0.225,2844.1,2843.8,0.001]
[1763953636594,0.4697,2843.9,2843.8,0.001]
[1763953636793,0.98630582,2843.9,2843.8,0.001]
[1763953636982,1.45810582,2843.9,2843.8,0.001]
[1763953638001,0.6947,2843.9,2843.8,0.001]
[1763953638208,0.225,2843.9,2843.8,0.001]
[1763953638579,0.95094172,2844.2,2843.8,0.001]
[1763953638782,0.225,2844.1,2843.8,0.001]
[1763953639105,0.04395218,2844.0,2843.8,0.001]
[1763953639626,0.225,2844.1,2843.8,0.001]
[1763953639799,0.04395218,2844.0,2843.8,0.001]
[1763953639969,0.90699264,2843.9,2843.8,0.001]
[1763953641106,11.68479068,2843.9,2843.8,0.001]
[1763953642918,8.16849264,2843.9,2843.8,0.001]
[1763953643075,8.39349264,2843.9,2843.8,0.001]
[1763953643275,9.4213843,2843.9,2843.8,0.001]
[1763953643500,12.93768234,2843.9,2843.8,0.001]
[1763953644259,13.25667185,2843.9,2843.8,0.001]
[1763953644539,0.4697,2843.7,2843.5,0.001]
[1763953644834,1.53906827,2843.6,2843.5,0.001]
[1763953645699,1.53906827,2843.6,2843.2,0.001]
[1763953645700,13.717892,2843.5,2843.2,0.001]
[1763953645930,13.717892,2843.5,2842.3,0.001]
[1763953645931,0.4697,2843.0,2842.3,0.001]
[1763953646133,8.48892405,2842.7,2842.3,0.001]
[1763953646435,1.22598215,2842.7,2842.3,0.001]
[1763953646734,1.13199264,2842.7,2842.6,0.3676]
[1763953647123,1.13199264,2842.7,2842.6,0.7342]
[1763953648032,0.90699264,2842.7,2842.6,0.7342]
[1763953648199,1.13199264,2842.7,2842.6,0.7342]
[1763953649139,1.45398007,2842.7,2842.6,0.7342]
[1763953649633,1.45398007,2842.7,2842.6,0.3676]
[1763953649822,1.45398007,2842.7,2842.6,0.7342]
[1763953650505,0.90699264,2842.7,2842.6,0.7342]
[1763953650834,0.225,2842.7,2842.6,0.8342]
[1763953651053,0.3221753,2843.5,2842.6,0.8342]
[1763953651254,0.5471753,2843.4,2842.9,0.1]
[1763953651551,0.3221753,2843.3,2842.9,0.1]
[1763953651755,0.3221753,2843.2,2843.0,0.3666]
[1763953651941,0.225,2843.2,2843.0,0.3666]
[1763953652164,0.3221753,2843.1,2843.0,0.3666]
[1763953652548,0.3221753,2843.1,2843.0,0.844]
[1763953653364,0.3221753,2843.1,2843.0,0.4774]
[1763953653574,0.3221753,2843.1,2843.0,0.1108]
[1763953653722,0.3221753,2843.1,2842.7,0.3666]
[1763953654059,0.36614293,2843.0,2842.7,0.3666]
[1763953654256,0.3221753,2842.9,2842.7,0.3666]
[1763953654468,0.3221753,2842.8,2842.7,0.3666]
[1763953654924,0.3221753,2842.8,2842.7,0.7332]
[1763953656160,0.3221753,2842.8,2842.7,0.3666]
[1763953657529,0.3221753,2842.8,2842.7,0.7332]
[1763953657738,0.3221753,2842.8,2842.7,0.8332]
[1763953659666,0.3221753,2842.8,2842.7,0.7332]
[1763953659892,0.3221753,2842.8,2842.7,0.8332]
[1763953660898,0.3221753,2842.8,2842.7,0.7332]
[1763953662701,0.3221753,2842.8,2842.7,0.3666]
[1763953663096,0.3221753,2842.8,2842.7,0.7332]
[1763953663398,0.3221753,2842.8,2842.7,0.8332]
[1763953663599,0.3221753,2842.8,2842.7,0.7332]
[1763953665994,0.3221753,2842.8,2842.7,0.8332]
[1763953666318,0.3221753,2842.8,2842.7,0.3666]
[1763953666520,0.8001753,2842.8,2842.6,0.001]
[1763953666819,1.2532753,2842.7,2842.6,0.001]
[1763953666985,1.46930209,2842.7,2842.6,0.001]
[1763953667617,1.46930209,2842.7,2842.6,0.3676]
[1763953667618,0.76320209,2842.7,2842.6,0.3676]
[1763953667826,0.5471753,2842.7,2842.6,0.001]
[1763953669688,1.4868753,2842.7,2842.6,0.001]
[1763953669916,1.0251753,2842.7,2842.6,0.001]
[1763953670421,1.4868753,2842.7,2842.6,0.001]
[1763953670622,5.45562259,2842.7,2842.6,0.001]
[1763953670826,5.45562259,2842.7,2842.5,0.001]
[1763953670827,0.90699264,2842.6,2842.5,0.001]
[1763953671118,1.37069264,2842.9,2842.5,0.001]
[1763953671522,0.26897073,2842.8,2842.5,0.001]
[1763953672225,0.225,2842.7,2842.5,0.001]
[1763953672420,0.04397382,2842.6,2842.5,0.001]
[1763953672623,0.52197382,2842.6,2842.5,0.001]
[1763953672785,0.98367382,2842.6,2842.5,0.001]
[1763953673201,5.4085726,2842.6,2842.5,0.001]
[1763953673405,1.89066646,2842.6,2842.5,0.001]
[1763953673624,5.62013925,2842.6,2842.5,0.001]
[1763953674446,0.478,2842.4,2842.1,0.001]
[1763953674742,7.95940117,2842.2,2842.1,0.001]
[1763953674948,8.98473913,2842.2,2842.1,0.001]
[1763953675648,9.44643913,2842.2,2842.1,0.001]
[1763953676312,8.75973913,2842.2,2842.1,0.001]
[1763953676508,8.98473913,2842.2,2842.1,0.001]
[1763953676711,8.98473913,2842.2,2842.1,0.4814]
[1763953676712,0.90699264,2842.2,2842.1,0.4814]
[1763953676907,0.21156665,2842.6,2842.1,0.4814]
[1763953677312,0.225,2842.5,2842.1,0.848]
[1763953677613,0.225,2842.5,2842.1,0.001]
[1763953677817,0.6867,2842.5,2842.1,0.001]
[1763953678024,0.18052593,2842.4,2842.1,0.001]
[1763953678210,0.04397846,2842.3,2842.1,0.001]
[1763953678416,0.18052593,2842.4,2842.1,0.001]
[1763953678611,0.18052593,2842.4,2842.1,0.1148]
[1763953678925,0.18052593,2842.4,2842.1,0.001]
[1763953679126,0.225,2842.3,2842.1,0.1148]
[1763953679531,0.26897846,2842.3,2842.1,0.001]
[1763953680651,0.225,2842.3,2842.1,0.001]
[1763953681271,0.90699264,2842.6,2842.2,0.3666]
[1763953681566,0.002,2842.9,2842.5,0.3666]
[1763953681779,0.225,2842.8,2842.5,0.3666]
[1763953681956,1.38499264,2842.6,2842.1,0.001]
[1763953682156,0.80119734,2842.5,2842.1,0.001]
[1763953682369,0.225,2842.4,2842.1,0.001]
[1763953682536,0.54824881,2842.4,2842.1,0.001]
[1763953683170,7.06100853,2842.2,2842.1,0.001]
[1763953683467,0.90699264,2842.1,2842.0,0.001]
[1763953683671,2.57493645,2842.1,2842.0,0.001]
[1763953684565,3.03663645,2842.1,2842.0,0.001]
[1763953684782,6.55516148,2842.1,2842.0,0.001]
[1763953686049,3.03663645,2842.1,2842.0,0.001]
[1763953686836,2.57493645,2842.1,2842.0,0.001]
[1763953687037,2.33053645,2842.1,2842.0,0.001]
[1763953687287,2.10553645,2842.1,2842.0,0.001]
[1763953687436,1.100295,2842.1,2842.0,0.001]
[1763953687633,2.0512692,2842.1,2842.0,0.001]
[1763953688138,2.00728764,2842.1,2842.0,0.3676]
[1763953688773,6.32,2842.4,2842.0,0.3676]
[1763953688774,6.32,2842.4,2842.0,0.7342]
[1763953688974,1.13199264,2842.3,2842.0,0.3676]
[1763953689173,7.12119734,2842.5,2842.3,0.4804]
[1763953689392,1.13199264,2842.4,2842.3,0.4804]
[1763953689965,1.13199264,2842.4,2842.0,0.001]
[1763953690165,0.002,2842.7,2842.3,0.3666]
[1763953690391,0.002,2842.7,2842.6,0.4666]
[1763953690665,0.002,2842.7,2842.2,0.4804]
[1763953690866,0.82226931,2842.7,2842.2,0.4804]
[1763953691102,0.82226931,2842.7,2842.2,0.1138]
[1763953691489,0.82226931,2842.7,2842.6,0.3666]
[1763953691690,0.82226931,2842.7,2842.0,0.001]
[1763953691691,0.9459,2842.7,2842.0,0.001]
[1763953691893,0.9459,2842.7,2842.1,0.1138]
[1763953691894,0.3228894,2842.6,2842.1,0.1138]
[1763953692108,0.7812894,2842.6,2842.1,0.1138]
[1763953692271,0.3228894,2842.5,2842.0,0.001]
[1763953692472,0.225,2842.4,2842.2,0.1138]
[1763953693181,0.32503827,2842.7,2842.3,0.3666]
[1763953693387,0.225,2842.6,2842.2,0.1138]
[1763953693890,0.54803827,2842.6,2842.2,0.1138]
[1763953695082,0.51458136,2842.6,2842.2,0.1138]
[1763953695281,0.002,2842.7,2842.5,0.3666]
[1763953695484,0.225,2842.6,2842.5,0.3666]
[1763953695682,0.225,2842.6,2842.2,0.4804]
[1763953695683,1.1689,2842.6,2842.0,0.001]
[1763953695884,0.32313962,2842.5,2842.0,0.001]
[1763953696106,0.32313962,2842.5,2842.1,0.1138]
[1763953696306,0.32513962,2842.7,2842.4,0.3666]
[1763953696507,0.225,2842.6,2842.4,0.3666]
[1763953696708,0.54813962,2842.6,2842.4,0.3666]
[1763953697229,0.32313962,2842.6,2842.5,0.3666]
[1763953697531,0.32313962,2842.6,2842.1,0.1138]
[1763953697532,0.6834,2842.6,2842.1,0.1138]
[1763953697697,0.32313962,2842.5,2842.1,0.1138]
[1763953698300,0.32313962,2842.5,2842.1,0.4804]
[1763953698595,0.225,2842.6,2842.1,0.4804]
[1763953700137,0.225,2842.6,2842.1,0.1138]
[1763953700338,0.4584,2842.5,2842.0,0.001]
[1763953700506,0.32313962,2842.4,2842.0,0.001]
[1763953700908,0.04397846,2842.3,2842.0,0.001]
[1763953701236,0.225,2842.2,2842.0,0.001]
[1763953703220,0.54813962,2842.2,2842.1,0.3666]
[1763953703399,0.225,2842.2,2842.1,0.847]
[1763953703966,0.225,2842.2,2842.1,0.4804]
[1763953704163,0.225,2842.2,2842.0,0.001]
[1763953704546,0.5483183,2842.2,2842.0,0.001]
[1763953707065,0.3233183,2842.2,2842.0,0.001]
[1763953707234,0.225,2842.1,2842.0,0.001]
[1763953708377,0.75448156,2842.1,2842.0,0.001]
[1763953708671,1.23229755,2842.1,2842.0,0.001]
[1763953709270,0.3233183,2842.1,2842.0,0.3676]
[1763953709472,0.225,2842.1,2842.0,0.7342]
[1763953710438,0.225,2842.1,2842.0,0.3676]
[1763953711284,0.225,2842.1,2842.0,0.001]
[1763953711984,0.225,2842.1,2842.0,0.3676]
[1763953712162,0.32328803,2842.2,2842.0,0.8342]
[1763953712374,0.225,2842.2,2842.1,0.4804]
[1763953712562,0.225,2842.2,2842.1,0.847]
[1763953712863,0.225,2842.2,2842.1,0.4804]
[1763953713066,0.225,2842.2,2842.1,0.3666]
[1763953713390,0.225,2842.2,2842.0,0.001]
[1763953713575,0.04398156,2842.1,2842.0,0.001]
[1763953713752,0.50918156,2842.1,2842.0,0.001]
[1763953714089,0.93814543,2842.2,2842.0,0.001]
[1763953714474,0.71314543,2842.2,2842.1,0.4804]
[1763953714796,0.93814543,2842.2,2842.1,0.4804]
[1763953715565,0.90699264,2842.5,2842.1,0.847]
[1763953715771,0.54856259,2842.4,2842.3,0.3666]
[1763953717294,0.54863464,2842.4,2842.3,0.3666]
[1763953718590,0.54863464,2842.4,2842.1,0.1138]
[1763953719390,0.54863464,2842.4,2842.0,0.001]
[1763953719592,1.04543464,2842.4,2842.0,0.001]
[1763953719898,0.51887737,2842.3,2842.0,0.001]
[1763953720061,0.32363464,2842.2,2842.0,0.001]
[1763953720262,0.04398156,2842.1,2842.0,0.001]
[1763953720556,0.4507,2842.1,2842.0,0.001]
[1763953720762,0.77433464,2842.1,2842.0,0.001]
[1763953720996,0.99214737,2842.1,2842.0,0.001]
[1763953722200,0.54144737,2842.1,2842.0,0.3676]
[1763953722497,0.21781273,2842.1,2842.0,0.001]
[1763953723098,0.66851273,2842.1,2842.0,0.001]
[1763953723399,0.54144737,2842.1,2842.0,0.001]
[1763953723563,0.66851273,2842.1,2842.0,0.001]
[1763953723767,1.53392893,2842.1,2842.0,0.001]
[1763953724064,0.54144737,2842.1,2842.0,0.001]
[1763953724686,0.21781273,2842.1,2842.0,0.001]
[1763953724888,0.21781273,2842.1,2842.0,0.3676]
[1763953724889,0.54144737,2842.1,2842.0,0.3676]
[1763953725086,0.21781273,2842.1,2842.0,0.3676]
[1763953725268,0.54144737,2842.1,2842.0,0.3676]
[1763953725467,0.32363464,2842.2,2842.0,0.3676]
[1763953725669,0.225,2842.3,2842.0,0.001]
[1763953725924,0.04398001,2842.2,2842.0,0.001]
[1763953726080,1.13199264,2842.3,2842.0,0.001]
[1763953726625,0.225,2842.3,2842.0,0.001]
[1763953726798,0.7228,2842.3,2842.0,0.001]
[1763953727001,0.32417234,2842.2,2842.0,0.001]
[1763953728507,0.4703,2842.1,2842.0,0.001]
[1763953728707,0.79447234,2842.1,2842.0,0.001]
[1763953729010,0.32417234,2842.1,2842.0,0.001]
[1763953729207,0.32417234,2842.2,2842.0,0.001]
[1763953729406,0.32417234,2842.1,2842.0,0.001]
[1763953729610,0.32417234,2842.2,2842.0,0.001]
[1763953730191,0.225,2842.1,2842.0,0.001]
[1763953730995,0.6953,2842.1,2842.0,0.001]
[1763953731209,1.01947234,2842.1,2842.0,0.001]
[1763953731792,1.51727234,2842.1,2842.0,0.001]
[1763953732733,0.32417234,2842.1,2842.0,0.7342]
[1763953732886,0.225,2842.3,2842.0,0.7342]
[1763953733223,0.225,2842.3,2842.0,0.001]
[1763953733433,0.4703,2842.1,2842.0,0.001]
[1763953733747,0.32412315,2842.1,2842.0,0.001]
[1763953733950,0.32412315,2842.2,2842.0,0.3676]
[1763953734150,0.225,2842.3,2842.0,0.3676]
[1763953736351,0.32612315,2842.4,2842.2,0.3666]
[1763953736524,0.225,2842.3,2842.2,0.3666]
[1763953737053,0.32612315,2842.4,2842.2,0.4666]
[1763953737054,0.002,2842.4,2842.2,0.4666]
[1763953737218,0.002,2842.4,2842.3,0.3666]
[1763953740853,0.002,2842.4,2842.1,0.1138]
[1763953741211,0.002,2842.4,2842.3,0.3666]
[1763953744985,0.002,2842.4,2842.1,0.1138]
[1763953745691,0.002,2842.4,2842.0,0.001]
[1763953745988,0.4998,2842.4,2842.0,0.001]
[1763953746290,0.002,2842.4,2842.1,0.1138]
[1763953746491,0.002,2842.4,2842.3,0.3666]
[1763953746692,0.002,2842.4,2842.1,0.1138]
[1763953746873,0.002,2842.4,2842.3,0.3666]
[1763953748181,0.002,2842.4,2842.0,0.001]
[1763953748182,0.6857,2842.4,2842.0,0.001]
[1763953748497,0.83988681,2842.3,2842.0,0.001]
[1763953748794,6.58043182,2842.1,2842.0,0.001]
[1763953748959,7.68995359,2842.1,2842.0,0.001]
[1763953749165,7.64597203,2842.1,2842.0,0.001]
[1763953749360,8.11837203,2842.1,2842.0,0.001]
[1763953749778,7.64597203,2842.1,2842.0,0.001]
[1763953749990,7.18727203,2842.1,2842.0,0.001]
[1763953751162,7.41227203,2842.1,2842.0,0.001]
[1763953751794,7.87097203,2842.1,2842.0,0.001]
[1763953751997,8.34337203,2842.1,2842.0,0.001]
[1763953752182,7.87097203,2842.1,2842.0,0.001]
[1763953752602,8.34337203,2842.1,2842.0,0.001]
[1763953753110,7.18727203,2842.1,2842.0,0.3676]
[1763953753309,1.45550099,2842.1,2842.0,0.3676]
[1763953753607,6.67024017,2842.1,2842.0,0.3676]
[1763953753815,5.76324753,2842.1,2842.0,0.3676]
[1763953754211,5.53824753,2842.1,2842.0,0.3676]
[1763953754411,5.76324753,2842.1,2842.0,0.3676]
[1763953754578,5.53824753,2842.1,2842.0,0.3676]
[1763953754908,6.44524017,2842.1,2842.0,0.3676]
[1763953755512,6.44524017,2842.1,2842.0,0.8342]
[1763953756115,0.002,2842.4,2842.0,0.8342]
[1763953756282,0.227,2842.4,2842.3,0.5804]
[1763953756689,0.227,2842.4,2842.3,0.947]
[1763953756890,1.13399264,2842.4,2842.0,0.001]
[1763953757091,5.21473918,2842.1,2842.0,0.001]
[1763953757413,6.34873182,2842.4,2842.3,0.3666]
[1763953759692,0.90699264,2842.3,2842.0,0.001]
[1763953759893,5.21473918,2842.1,2842.0,0.001]
[1763953760293,5.21473918,2842.1,2842.0,0.3676]
[1763953760511,1.13199264,2842.3,2842.1,0.1]
[1763953760815,1.13199264,2842.3,2842.2,0.3666]
[1763953761022,1.13199264,2842.3,2842.1,0.2138]
[1763953761190,1.13199264,2842.3,2842.1,0.1138]
[1763953762722,1.13199264,2842.3,2842.0,0.001]
[1763953763200,1.13199264,2842.3,2842.2,0.3666]
[1763953763382,1.45585823,2842.3,2842.2,0.3666]
[1763953763740,1.45585823,2842.3,2842.1,0.1138]
[1763953763917,1.13199264,2842.3,2842.1,0.1138]
[1763953764822,0.4587,2842.2,2842.0,0.001]
[1763953765505,0.32380507,2842.1,2842.0,0.001]
[1763953766019,0.32380507,2842.2,2842.0,0.4676]
[1763953766221,0.32380507,2842.2,2842.0,0.101]
[1763953766524,0.32380507,2842.2,2842.1,0.3666]
[1763953767010,0.32380507,2842.2,2842.1,0.4804]
[1763953767323,0.227,2842.4,2842.2,0.1]
[1763953767531,0.227,2842.4,2842.3,0.3666]
[1763953768599,0.227,2842.4,2842.3,0.7332]
[1763953768803,0.227,2842.4,2842.3,0.3666]
[1763953769041,0.002,2842.4,2842.3,0.3666]
[1763953769739,0.90699264,2842.3,2842.1,0.1]
[1763953769935,0.90699264,2842.3,2842.0,0.001]
[1763953770135,0.90699264,2842.3,2842.2,0.4666]
[1763953770341,5.21673918,2842.4,2842.2,0.4666]
[1763953770544,5.21673918,2842.4,2842.1,0.1138]
[1763953770545,0.002,2842.4,2842.3,0.7332]
[1763953770713,0.002,2842.4,2842.3,0.8332]
[1763953770913,0.002,2842.4,2842.3,0.3666]
[1763953771824,0.002,2842.4,2842.3,0.4666]
[1763953772430,0.002,2842.4,2842.3,0.3666]
[1763953772627,0.002,2842.4,2842.2,0.1]
[1763953773838,0.002,2842.4,2842.1,0.1138]
[1763953774040,5.21673918,2842.4,2842.1,0.1138]
[1763953774230,0.90699264,2842.3,2842.1,0.1138]
[1763953774739,1.13199264,2842.3,2842.0,0.101]
[1763953775149,0.225,2842.3,2842.0,0.101]
[1763953776427,0.225,2842.3,2842.2,0.3666]
[1763953777031,0.225,2842.3,2842.0,0.101]
[1763953777328,5.70143918,2842.1,2842.0,0.001]
[1763953777740,7.38769661,2842.1,2842.0,0.001]
[1763953778262,0.54856479,2842.1,2842.0,0.3676]
[1763953778466,5.21473918,2842.3,2842.0,0.3676]
[1763953778668,0.54854982,2842.2,2842.1,0.2138]
[1763953779070,0.54854982,2842.2,2842.1,0.5804]
[1763953779571,1.23054246,2842.2,2842.1,0.5804]
[1763953780164,2.17294246,2842.2,2842.0,0.001]
[1763953780345,2.17294246,2842.2,2842.1,0.3666]
[1763953780346,0.90699264,2842.2,2842.1,0.3666]
[1763953780546,1.23063961,2842.2,2842.1,0.3666]
[1763953780736,1.23063961,2842.2,2842.0,0.001]
[1763953780737,2.38457749,2842.2,2842.0,0.001]
[1763953780938,2.06093052,2842.2,2842.0,0.001]
[1763953781138,1.39369264,2842.2,2842.0,0.001]
[1763953781638,0.95097265,2842.2,2842.0,0.001]
[1763953781969,0.90699264,2842.2,2842.0,0.001]
[1763953782785,0.95097265,2842.2,2842.0,0.001]
[1763953783285,0.32393029,2842.1,2842.0,0.001]
[1763953783491,0.32402771,2842.2,2842.1,0.2138]
[1763953784191,0.32402771,2842.2,2842.1,0.5804]
[1763953784688,0.32402771,2842.2,2842.0,0.3676]
[1763953784689,0.77642771,2842.2,2842.0,0.001]
[1763953784983,0.32402771,2842.1,2842.0,0.001]
[1763953785187,0.4524,2842.1,2842.0,0.001]
[1763953785485,0.32402771,2842.1,2842.0,0.001]
[1763953785686,0.32402771,2842.2,2842.0,0.001]
[1763953785987,0.32383718,2842.2,2842.0,0.001]
[1763953787173,0.4524,2842.1,2842.0,0.001]
[1763953787389,0.77623718,2842.1,2842.0,0.001]
[1763953787761,0.32383718,2842.1,2842.0,0.3676]
[1763953787971,0.90699264,2842.2,2842.0,0.8342]
[1763953788260,0.90699264,2842.2,2842.1,0.5804]
[1763953788480,1.23082163,2842.2,2842.1,0.5804]
[1763953788652,6.64907876,2842.2,2842.0,0.101]
[1763953788854,0.77622899,2842.1,2842.0,0.001]
[1763953789049,1.24082899,2842.1,2842.0,0.001]
[1763953789281,0.77622899,2842.1,2842.0,0.001]
[1763953789484,0.32382899,2842.1,2842.0,0.001]
[1763953789864,0.82021055,2842.1,2842.0,0.001]
[1763953790081,1.93283502,2842.1,2842.0,0.001]
[1763953791364,0.54882899,2842.1,2842.0,0.001]
[1763953791587,0.225,2842.1,2842.0,0.001]
[1763953791904,0.225,2842.1,2842.0,0.3676]
[1763953792209,6.09784977,2842.1,2842.0,0.001]
[1763953792508,7.11372741,2842.1,2842.0,0.001]
[1763953792817,7.33872741,2842.1,2842.0,0.001]
[1763953793833,8.07280015,2842.1,2842.0,0.001]
[1763953794415,13.03865728,2842.1,2842.0,0.001]
[1763953795088,8.07280015,2842.1,2842.0,0.001]
[1763953797617,0.90699264,2842.0,2841.8,0.001]
[1763953797823,7.64539976,2841.9,2841.8,0.001]
[1763953799103,8.5523924,2841.9,2841.8,0.001]
[1763953799621,8.69348562,2841.9,2841.8,0.001]
[1763953799991,8.67700384,2841.9,2841.8,0.001]
[1763953800394,3.71114671,2841.9,2841.8,0.001]
[1763953801104,2.5580635,2841.9,2841.8,0.001]
[1763953801338,2.60204815,2841.9,2841.8,0.001]
[1763953801706,2.5580635,2841.9,2841.8,0.001]
[1763953802029,0.90699264,2841.8,2841.7,0.001]
[1763953802326,8.46787028,2841.8,2841.7,0.001]
[1763953802693,8.46787028,2841.8,2839.2,3.74710399]
[1763953802694,5.87284977,2841.6,2840.2,0.3666]
[1763953802895,6.69311671,2841.6,2840.2,0.3666]
[1763953803132,7.15771671,2841.6,2840.3,0.3666]
[1763953803335,7.47950836,2841.6,2840.3,0.3666]
[1763953803917,10.9986525,2841.6,2840.3,0.3666]
[1763953804236,17.3186525,2841.6,2840.0,0.4774]
[1763953804530,17.3186525,2841.6,2840.1,0.1]
[1763953804531,6.78984977,2841.5,2840.1,0.1]
[1763953804719,4.96585713,2840.5,2840.0,0.4774]
[1763953804922,1.13199264,2840.4,2840.1,0.1]
[1763953805233,1.13199264,2840.4,2840.0,0.5774]
[1763953805436,1.13199264,2840.4,2840.0,0.1108]
[1763953805939,1.13199264,2840.4,2840.3,0.3666]
[1763953806240,6.02442598,2840.8,2840.3,0.3666]
[1763953806425,0.225,2840.9,2840.7,0.3666]
[1763953806731,5.19085713,2840.9,2840.1,0.1]
[1763953806920,0.90699264,2840.8,2840.1,0.3666]
[1763953807120,0.90699264,2840.8,2840.4,0.1]
[1763953807293,0.90699264,2840.8,2840.7,0.3666]
[1763953807498,4.96585713,2841.2,2840.7,0.3666]
[1763953807699,6.545,2841.4,2841.2,0.5085]
[1763953807938,6.545,2841.4,2841.3,0.3666]
[1763953808236,0.225,2841.4,2841.3,0.3666]
[1763953808411,0.225,2841.4,2841.3,0.8332]
[1763953808737,0.32227856,2841.7,2841.3,0.8332]
[1763953809037,0.002,2842.1,2841.7,0.1]
[1763953809233,0.225,2842.0,2841.7,0.1]
[1763953809537,0.225,2842.0,2841.2,0.1419]
[1763953809538,1.54649264,2841.8,2841.2,0.1419]
[1763953809830,0.90699264,2841.8,2841.3,0.1]
[1763953810035,1.06009468,2842.1,2841.7,0.3666]
[1763953810340,0.225,2842.0,2841.8,0.3666]
[1763953810696,0.002,2842.1,2841.9,0.3666]
[1763953810903,0.225,2842.0,2841.7,0.1]
[1763953811408,0.225,2842.0,2841.9,0.3666]
[1763953812238,0.90899264,2842.1,2841.9,0.3666]
[1763953812239,0.002,2842.1,2841.9,0.3666]
[1763953812395,0.225,2842.0,2841.7,0.4666]
[1763953812930,0.227,2842.1,2842.0,0.1]
[1763953813230,0.227,2842.1,2842.0,0.4666]
[1763953814100,0.002,2842.1,2842.0,0.3666]
[1763953814302,0.002,2842.1,2842.0,0.4666]
[1763953815230,0.4529,2842.1,2841.6,0.1]
[1763953815804,0.04398311,2842.0,2841.3,0.4666]
[1763953816015,1.03947402,2842.0,2841.3,0.1]
[1763953816226,0.002,2842.1,2841.9,0.3666]
[1763953816533,0.002,2842.1,2841.4,0.3666]
[1763953816534,0.225,2842.0,2841.4,0.3666]
[1763953816736,0.225,2842.0,2841.7,0.1]
[1763953817899,0.225,2842.0,2841.4,0.1]
[1763953818097,0.225,2842.0,2841.7,0.1]
[1763953818530,0.4509,2841.8,2841.2,0.5085]
[1763953818739,0.225,2842.0,2841.6,0.1]
[1763953818740,0.90699264,2842.0,2841.6,0.1]
[1763953819035,4.96785713,2842.1,2841.9,0.3666]
[1763953819036,0.002,2842.1,2841.9,0.3666]
[1763953819229,0.225,2842.0,2841.6,0.4666]
[1763953819430,0.225,2842.0,2841.2,0.1419]
[1763953819431,0.4509,2841.7,2841.2,0.1419]
[1763953819599,0.4707,2841.7,2841.2,0.1419]
[1763953820005,0.225,2841.6,2841.2,0.1419]
[1763953820218,0.225,2841.6,2841.4,0.1]
[1763953820826,0.4509,2841.5,2840.9,0.1]
[1763953821131,0.8175,2841.5,2840.6,0.4666]
[1763953821302,0.8175,2841.5,2840.9,0.1]
[1763953821498,0.24201926,2841.4,2840.9,0.1]
[1763953821738,0.24201926,2841.4,2840.7,0.3666]
[1763953821739,0.90699264,2841.3,2840.7,0.3666]
[1763953821937,0.225,2841.2,2840.8,0.1]
[1763953822137,0.225,2841.2,2840.4,0.1]
[1763953822300,0.90699264,2841.0,2840.4,0.1]
[1763953822502,4.96585713,2840.8,2840.0,0.1118]
[1763953822743,4.96585713,2840.8,2840.2,0.1]
[1763953822744,0.225,2840.7,2840.2,0.1]